bitfinex-derivatives/quotes_SOLF0:USTF0_20250421
["timestamp","ask_amount","ask_price","bid_price","bid_amount"]
[1745196252022,31.34,142.42,142.35,7.81088023]
[1745196252325,31.34,142.42,142.33,4.0557]
[1745196252523,31.34,142.42,142.34,7.81147807]
[1745196252818,46.74347381,142.42,142.26,15.40347381]
[1745196253025,15.40347381,142.39,142.29,7.81792281]
[1745196253224,38.8283,142.38,142.3,7.81792281]
[1745196253419,45.8531,142.38,142.33,7.0271]
[1745196253822,38.8283,142.38,142.26,50.41187381]
[1745196254023,54.23177381,142.38,142.27,7.817292]
[1745196254221,54.23177381,142.38,142.28,7.817292]
[1745196254420,54.23177381,142.38,142.24,3.6684]
[1745196254621,54.23177381,142.38,142.25,15.14154207]
[1745196254822,38.8283,142.38,142.26,26.22344157]
[1745196255026,38.8283,142.38,142.27,7.82182886]
[1745196255222,7.0258,142.36,142.3,7.0283]
[1745196255422,38.8283,142.38,142.3,7.0283]
[1745196255625,38.8283,142.38,142.28,7.31971321]
[1745196255825,7.0265,142.35,142.29,14.84716197]
[1745196256026,31.34,142.34,142.3,7.81836197]
[1745196256225,31.34,142.34,142.29,7.0288]
[1745196256423,38.3667,142.34,142.29,7.0288]
[1745196256925,7.0272,142.33,142.28,7.0295]
[1745196257126,31.34,142.34,142.29,7.81940991]
[1745196257423,31.34,142.34,142.28,9.62767421]
[1745196257617,31.34,142.34,142.29,7.81906643]
[1745196257822,38.3668,142.34,142.29,7.0288]
[1745196258125,31.34,142.34,142.26,9.62767421]
[1745196258322,7.0286,142.3,142.27,15.14000467]
[1745196258529,31.34,142.3,142.27,7.31838641]
[1745196258828,38.3691,142.3,142.25,7.0309]
[1745196259127,38.3691,142.3,142.24,3.6684]
[1745196259325,7.0291,142.29,142.25,7.8212963]
[1745196259526,7.0291,142.29,142.24,10.6997]
[1745196259724,31.34,142.3,142.24,3.6684]
[1745196259917,31.34,142.3,142.27,7.0301]
[1745196260118,31.34,142.3,142.25,9.62767421]
[1745196260321,31.34,142.3,142.26,7.81830403]
[1745196260618,31.34,142.3,142.25,9.62767421]
[1745196260822,31.34,142.3,142.26,7.81800968]
[1745196261023,31.34,142.3,142.24,3.6684]
[1745196261327,7.0306,142.26,142.22,7.0324]
[1745196261528,31.3,142.26,142.2,365.0212]
[1745196261830,31.3,142.29,142.25,16.65837421]
[1745196262028,31.3,142.29,142.25,9.62767421]
[1745196262227,31.3,142.29,142.23,9.62767421]
[1745196262429,31.3,142.29,142.24,7.0315]
[1745196262728,31.3,142.29,142.23,9.62767421]
[1745196264327,31.3,142.29,142.21,9.62767421]
[1745196264520,7.0299,142.28,142.23,7.0319]
[1745196264821,31.3,142.29,142.23,7.0319]
[1745196265026,40.92767421,142.29,142.22,7.30522125]
[1745196265228,7.4484,142.28,142.22,7.30522125]
[1745196265426,3.6804,142.28,142.21,9.62767421]
[1745196265928,31.3,142.29,142.21,9.62767421]
[1745196266825,7.0299,142.28,142.23,7.0319]
[1745196267231,31.3,142.29,142.21,9.62767421]
[1745196267430,31.3,142.29,142.19,9.62767421]
[1745196267624,9.62767421,142.28,142.17,13.36767421]
[1745196267829,9.62767421,142.26,142.17,3.74]
[1745196268130,39.0311,142.25,142.17,3.74]
[1745196268327,7.0324,142.23,142.18,7.0342]
[1745196268527,39.0311,142.25,142.17,3.74]
[1745196268728,7.0319,142.24,142.19,7.0338]
[1745196269126,39.0311,142.25,142.15,13.66977421]
[1745196269827,39.0311,142.25,142.17,9.62767421]
[1745196270130,31.3,142.25,142.19,9.62767421]
[1745196270333,7.0316,142.24,142.19,16.66147421]
[1745196270627,31.3,142.25,142.19,9.62767421]
[1745196270931,38.3311,142.25,142.2,7.0333]
[1745196271229,31.3,142.25,142.19,9.62767421]
[1745196271430,7.0326,142.22,142.18,7.0344]
[1745196271733,31.32,142.21,142.18,7.0344]
[1745196272527,31.32,142.21,142.17,9.62767421]
[1745196272832,9.62767421,142.32,142.19,9.62767421]
[1745196273130,31.32,142.31,142.22,7.0324]
[1745196273333,7.0305,142.27,142.22,7.0324]
[1745196273530,31.32,142.27,142.23,7.0319]
[1745196273731,31.32,142.27,142.2,17.34187421]
[1745196273732,31.32,142.27,142.2,4.0342]
[1745196273932,7.0314,142.25,142.2,4.0342]
[1745196274233,31.32,142.27,142.2,4.0342]
[1745196274433,7.0311,142.25,142.2,11.0674]
[1745196274628,31.32,142.27,142.2,11.0674]
[1745196274931,31.32,142.27,142.19,361.0]
[1745196275131,3.9284,142.26,142.19,361.0]
[1745196275633,7.0324,142.23,142.19,361.0]
[1745196275833,31.32,142.22,142.19,361.0]
[1745196276034,31.32,142.22,142.16,9.62767421]
[1745196276332,31.32,142.22,142.18,7.0341]
[1745196276933,38.353,142.22,142.17,7.0349]
[1745196277234,31.32,142.22,142.14,9.62767421]
[1745196277433,7.0342,142.19,142.13,364.7376]
[1745196277732,31.32,142.18,142.13,364.7376]
[1745196277934,38.3549,142.18,142.13,368.0367]
[1745196278133,31.32,142.18,142.13,361.0]
[1745196278434,38.3546,142.18,142.13,368.0369]
[1745196278628,31.32,142.18,142.1,13.40637421]
[1745196278829,31.32,142.18,142.1,3.7787]
[1745196279126,40.94767421,142.18,142.06,9.62767421]
[1745196279323,7.7703,142.17,142.06,9.62767421]
[1745196279525,7.7703,142.17,142.08,9.62767421]
[1745196279725,31.32,142.18,142.12,9.62767421]
[1745196280027,31.32,142.18,142.07,392.32]
[1745196280234,31.32,142.18,142.08,9.62767421]
[1745196280637,7.0362,142.15,142.1,7.0383]
[1745196280932,31.32,142.14,142.1,7.0383]
[1745196281631,31.32,142.14,142.07,361.0]
[1745196282135,7.0372,142.13,142.08,7.0392]
[1745196282435,31.32,142.14,142.06,9.62767421]
[1745196282827,31.32,142.14,142.05,7.6673]
[1745196283336,31.32,142.14,142.05,3.7787]
[1745196283531,9.62767421,142.13,142.03,9.62767421]
[1745196283732,9.62767421,142.13,142.01,17.50927421]
[1745196283931,3.9089,142.12,142.01,17.50927421]
[1745196284133,3.9089,142.12,142.03,9.62767421]
[1745196284336,7.0386,142.1,142.04,7.0411]
[1745196284532,31.32,142.09,142.05,9.62767421]
[1745196285333,31.32,142.09,142.04,15.45258817]
[1745196285637,31.32,142.09,142.01,39.2216]
[1745196285835,31.32,142.09,142.03,15.45258817]
[1745196286535,31.32,142.09,142.08,7.0395]
[1745196286735,31.32,142.09,142.03,15.45258817]
[1745196286736,31.32,142.09,142.01,39.2216]
[1745196286930,31.32,142.09,142.02,15.45258817]
[1745196287132,31.32,142.09,142.06,7.0402]
[1745196287532,38.359,142.09,142.04,7.0414]
[1745196288036,38.359,142.09,142.01,384.33418817]
[1745196288233,38.359,142.09,142.02,7.73941869]
[1745196288436,38.359,142.09,142.01,384.33418817]
[1745196288631,31.32,142.09,142.02,7.73664431]
[1745196288828,31.32,142.09,142.01,384.33418817]
[1745196289035,31.32,142.09,142.06,7.0402]
[1745196289638,31.32,142.09,142.05,7.0409]
[1745196289940,31.32,142.09,142.01,384.33418817]
[1745196290242,38.3594,142.09,142.01,384.33418817]
[1745196290740,38.3594,142.09,142.04,7.041]
[1745196290936,31.32,142.09,142.01,384.33418817]
[1745196291241,31.32,142.09,142.05,7.041]
[1745196291736,31.32,142.09,142.01,384.33418817]
[1745196291938,31.32,142.09,142.07,7.04]
[1745196292239,31.32,142.09,142.04,15.45258817]
[1745196292641,560.7105,142.16,142.04,15.45258817]
[1745196292642,31.3,142.12,142.04,15.45258817]
[1745196293148,31.3,142.12,142.1,7.0382]
[1745196293441,31.3,142.12,142.07,15.45258817]
[1745196293639,557.04,142.16,142.07,15.45258817]
[1745196293839,31.3,142.24,142.13,15.45258817]
[1745196294141,7.0336,142.2,142.14,7.0364]
[1745196294341,31.3,142.23,142.1,15.45258817]
[1745196294533,3.6846,142.22,142.1,15.45258817]
[1745196294735,561.131,142.21,142.1,15.45258817]
[1745196295344,568.1641,142.21,142.15,7.0357]
[1745196295545,561.131,142.21,142.1,15.45258817]
[1745196295746,561.131,142.21,142.11,7.73760686]
[1745196295946,561.131,142.21,142.1,15.45258817]
[1745196296147,561.131,142.21,142.17,7.035]
[1745196296345,561.131,142.21,142.1,15.45258817]
[1745196296645,568.1641,142.21,142.16,7.0352]
[1745196296846,561.131,142.21,142.1,15.45258817]
[1745196297242,568.1642,142.21,142.15,7.0356]
[1745196298247,568.1642,142.21,142.16,7.0353]
[1745196298446,7.0337,142.2,142.1,15.45258817]
[1745196298647,31.3,142.19,142.1,15.45258817]
[1745196298849,31.3,142.19,142.14,7.0365]
[1745196299042,31.3,142.19,142.1,15.45258817]
[1745196299341,31.3,142.19,142.15,7.0357]
[1745196299546,31.3,142.19,142.1,15.45258817]
[1745196300447,31.3,142.19,142.13,15.45258817]
[1745196302050,3.7671,142.27,142.16,15.45258817]
[1745196302348,31.3,142.26,142.19,15.45258817]
[1745196302847,31.3,142.26,142.2,4.0585]
[1745196303649,31.3,142.26,142.22,15.45258817]
[1745196304150,31.3,142.26,142.25,7.0311]
[1745196304345,31.3,142.26,142.22,15.45258817]
[1745196304948,31.3,142.26,142.24,7.0314]
[1745196305450,31.3,142.26,142.25,7.0311]
[1745196305851,31.3,142.26,142.2,4.0585]
[1745196306047,31.3,142.26,142.22,7.0325]
[1745196306246,31.3,142.26,142.2,4.0585]
[1745196306447,557.3,142.28,142.22,15.45258817]
[1745196306848,557.3,142.28,142.24,7.0312]
[1745196307153,557.3,142.28,142.22,15.45258817]
[1745196307551,557.3,142.28,142.25,7.0311]
[1745196307751,557.3,142.28,142.22,15.45258817]
[1745196308049,557.3,142.28,142.25,7.0307]
[1745196309552,3.7671,142.33,142.22,15.45258817]
[1745196309755,31.28,142.32,142.25,15.45258817]
[1745196310051,31.28,142.32,142.27,7.0298]
[1745196310353,31.28,142.32,142.25,15.45258817]
[1745196310656,31.28,142.32,142.26,3.9807]
[1745196311253,31.28,142.32,142.29,7.0288]
[1745196311454,31.28,142.32,142.26,3.9807]
[1745196311854,31.28,142.32,142.22,361.0]
[1745196312459,15.45258817,142.29,142.18,3.9541]
[1745196312659,35.0507,142.28,142.18,3.9541]
[1745196312860,7.0311,142.25,142.18,3.9541]
[1745196313058,31.28,142.24,142.18,3.9541]
[1745196314259,31.28,142.27,142.19,15.45258817]
[1745196314658,7.0313,142.25,142.2,7.0334]
[1745196315155,31.28,142.27,142.21,7.033]
[1745196315361,31.28,142.27,142.18,3.9541]
[1745196315660,31.28,142.27,142.21,7.0328]
[1745196315963,7.0308,142.26,142.21,7.0328]
[1745196316255,31.28,142.27,142.18,3.9541]
[1745196316460,7.0313,142.25,142.17,361.0]
[1745196316657,31.28,142.27,142.17,361.0]
[1745196316858,31.28,142.27,142.22,7.0322]
[1745196317059,38.3105,142.27,142.17,361.0]
[1745196317253,31.28,142.27,142.17,361.0]
[1745196317858,31.28,142.27,142.2,7.0335]
[1745196318161,31.28,142.27,142.17,361.0]
[1745196318162,7.032,142.24,142.17,361.0]
[1745196318456,31.28,142.23,142.17,361.0]
[1745196319460,31.24,142.26,142.19,15.45258817]
[1745196320261,31.24,142.26,142.23,7.0317]
[1745196320462,31.24,142.26,142.19,15.45258817]
[1745196321362,31.24,142.26,142.23,7.0318]
[1745196321861,31.24,142.26,142.19,15.45258817]
[1745196322559,31.24,142.33,142.25,15.45258817]
[1745196322753,31.24,142.32,142.25,15.45258817]
[1745196322957,31.24,142.32,142.26,7.0303]
[1745196323561,31.24,142.32,142.22,4.0251]
[1745196324363,7.0295,142.29,142.23,7.0317]
[1745196324664,31.24,142.28,142.23,7.0317]
[1745196324863,38.2697,142.28,142.23,7.0317]
[1745196325062,31.24,142.28,142.21,3.8388]
[1745196325263,31.24,142.28,142.2,361.0]
[1745196325467,7.0309,142.26,142.2,361.0]
[1745196325967,4.0532,142.27,142.2,361.0]
[1745196326265,31.24,142.28,142.2,361.0]
[1745196326466,38.2697,142.28,142.23,7.0317]
[1745196326657,31.24,142.28,142.2,361.0]
[1745196326863,31.24,142.28,142.21,19.13528817]
[1745196327060,31.24,142.28,142.27,7.0301]
[1745196327267,31.24,142.31,142.21,26.83668817]
[1745196327564,31.24,142.31,142.3,7.0286]
[1745196328468,31.24,142.34,142.33,7.0271]
[1745196330167,31.24,142.34,142.28,11.3478]
[1745196330368,31.24,142.37,142.3,15.45258817]
[1745196330569,31.24,142.37,142.34,7.0263]
[1745196330765,31.24,142.37,142.3,15.45258817]
[1745196331369,31.24,142.37,142.34,7.0265]
[1745196331568,31.24,142.37,142.3,15.45258817]
[1745196331869,31.24,142.37,142.33,15.45258817]
[1745196332071,31.24,142.37,142.34,7.0265]
[1745196332269,31.24,142.4,142.33,15.45258817]
[1745196332760,31.24,142.4,142.37,7.0249]
[1745196332964,31.22,142.43,142.36,15.45258817]
[1745196333165,31.22,142.47,142.42,7.0223]
[1745196333361,3.6659,142.5,142.42,15.45258817]
[1745196333570,31.22,142.51,142.42,15.45258817]
[1745196334069,31.22,142.51,142.4,31.22]
[1745196334070,31.22,142.51,142.45,15.45258817]
[1745196334274,31.22,142.57,142.48,15.45258817]
[1745196334569,31.22,142.59,142.51,15.45258817]
[1745196334772,134.65614715,142.64,142.54,15.45258817]
[1745196335066,127.64384715,142.64,142.57,15.45258817]
[1745196335371,96.42384715,142.64,142.6,15.45258817]
[1745196335674,96.42384715,142.64,142.61,15.45258817]
[1745196336267,96.42384715,142.64,142.61,22.46578817]
[1745196336467,160.70641193,142.65,142.61,15.45258817]
[1745196336868,160.70641193,142.65,142.61,22.46548817]
[1745196337363,160.70641193,142.65,142.61,15.45258817]
[1745196338167,31.2,142.64,142.55,23.26788817]
[1745196338367,31.2,142.64,142.58,15.45258817]
[1745196338571,31.2,142.67,142.61,15.45258817]
[1745196338871,31.2,142.69,142.64,22.46398817]
[1745196339371,38.2095,142.69,142.63,7.0123]
[1745196339575,31.2,142.69,142.61,15.45258817]
[1745196340173,38.2096,142.69,142.62,7.0125]
[1745196340374,31.2,142.69,142.61,15.45258817]
[1745196340778,31.2,142.69,142.59,361.0]
[1745196340971,560.0855,142.68,142.55,23.26788817]
[1745196341668,556.04,142.68,142.61,15.45258817]
[1745196341875,587.22,142.68,142.65,7.0112]
[1745196342071,31.18,142.68,142.64,15.45258817]
[1745196342275,11.22440859,142.68,142.64,15.45258817]
[1745196342568,11.22440859,142.68,142.58,15.45258817]
[1745196342569,31.18,142.68,142.58,15.45258817]
[1745196342773,31.18,142.68,142.56,361.0]
[1745196342967,15.45258817,142.65,142.49,15.45258817]
[1745196343170,591.0255,142.64,142.49,15.45258817]
[1745196343474,24.95316264,142.63,142.49,24.95316264]
[1745196343676,31.18,142.62,142.52,24.95316264]
[1745196343877,31.18,142.62,142.5,3.7346]
[1745196344680,31.18,142.62,142.56,7.0154]
[1745196344873,31.18,142.62,142.51,31.18]
[1745196345168,31.18,142.62,142.53,24.95316264]
[1745196345869,31.18,142.62,142.59,7.0142]
[1745196346078,31.18,142.62,142.56,24.95316264]
[1745196346580,31.18,142.62,142.58,7.0148]
[1745196347480,31.18,142.62,142.57,7.0153]
[1745196347779,31.18,142.62,142.53,24.95316264]
[1745196347977,31.18,142.65,142.56,24.95316264]
[1745196348174,31.18,142.65,142.59,24.95316264]
[1745196348379,3.6923,142.69,142.62,24.95316264]
[1745196348582,555.66,142.71,142.62,24.95316264]
[1745196348876,31.18,142.72,142.62,24.95316264]
[1745196349183,31.18,142.72,142.65,24.95316264]
[1745196350283,31.18,142.72,142.6,3.7691]
[1745196350486,24.95316264,142.7,142.56,24.95316264]
[1745196350688,555.5,142.69,142.56,24.95316264]
[1745196351086,34.7911,142.68,142.56,24.95316264]
[1745196351285,24.95316264,142.67,142.53,24.95316264]
[1745196351589,7.0119,142.64,142.53,24.95316264]
[1745196351788,31.12,142.63,142.56,24.95316264]
[1745196351988,31.12,142.63,142.53,24.95316264]
[1745196352187,7.014,142.6,142.51,3.7268]
[1745196352490,31.12,142.62,142.53,24.95316264]
[1745196352789,31.12,142.62,142.53,28.72536264]
[1745196352992,31.12,142.62,142.52,35.0252]
[1745196354589,38.133,142.62,142.56,7.0154]
[1745196354788,31.12,142.62,142.52,35.0252]
[1745196355088,3.9782,142.61,142.55,7.0158]
[1745196355489,3.9782,142.61,142.52,35.0252]
[1745196355681,3.9782,142.61,142.56,7.0155]
[1745196355882,31.12,142.62,142.53,24.95316264]
[1745196356991,31.12,142.62,142.58,7.0146]
[1745196357791,63.09316264,142.62,142.45,31.12]
[1745196357988,7.5389,142.61,142.45,56.07316264]
[1745196358294,7.0154,142.57,142.5,7.0184]
[1745196358492,31.12,142.56,142.51,24.95316264]
[1745196359889,31.12,142.56,142.47,24.95316264]
[1745196360394,7.0177,142.53,142.47,24.95316264]
[1745196360591,31.12,142.56,142.47,24.95316264]
[1745196360791,7.0177,142.53,142.47,31.97326264]
[1745196360991,31.12,142.56,142.47,24.95316264]
[1745196361393,7.0164,142.55,142.49,7.0189]
[1745196361593,31.14,142.55,142.47,24.95316264]
[1745196362491,31.14,142.55,142.52,7.0177]
[1745196362692,7.0155,142.57,142.52,7.0177]
[1745196363089,7.0155,142.57,142.51,7.0181]
[1745196363295,31.14,142.57,142.47,24.95316264]
[1745196363698,7.0158,142.56,142.5,7.0184]
[1745196363987,31.14,142.57,142.47,24.95316264]
[1745196364188,31.14,142.57,142.5,7.0188]
[1745196364384,31.14,142.57,142.47,24.95316264]
[1745196364895,7.0173,142.54,142.49,7.0192]
[1745196365093,31.14,142.53,142.49,7.0192]
[1745196365487,555.62,142.58,142.47,24.95316264]
[1745196365691,31.14,142.56,142.47,24.95316264]
[1745196366189,31.14,142.56,142.44,36.28296264]
[1745196366394,31.14,142.56,142.44,3.8375]
[1745196366894,24.95316264,142.54,142.38,54.87117941]
[1745196367093,56.09316264,142.56,142.41,24.95316264]
[1745196367094,7.554,142.53,142.41,24.95316264]
[1745196367294,31.14,142.52,142.41,24.95316264]
[1745196367494,31.14,142.52,142.44,24.95316264]
[1745196367796,31.14,142.52,142.47,24.95316264]
[1745196368200,31.14,142.52,142.48,7.0197]
[1745196368399,31.14,142.52,142.44,24.95316264]
[1745196369097,31.14,142.52,142.47,24.95316264]
[1745196369294,31.14,142.55,142.47,24.95316264]
[1745196369599,31.14,142.55,142.5,24.95316264]
[1745196369995,31.14,142.55,142.47,24.95316264]
[1745196370198,31.14,142.55,142.5,24.95316264]
[1745196370398,31.14,142.55,142.45,11.4884]
[1745196370598,31.14,142.55,142.48,24.95316264]
[1745196370900,31.14,142.55,142.52,7.0177]
[1745196371200,31.14,142.55,142.48,24.95316264]
[1745196371401,31.14,142.55,142.52,7.0175]
[1745196371595,31.14,142.55,142.48,24.95316264]
[1745196371798,31.14,142.61,142.54,24.95316264]
[1745196372003,31.14,142.62,142.54,24.95316264]
[1745196372698,31.14,142.62,142.55,14.7990781]
[1745196372899,31.14,142.62,142.56,7.64525868]
[1745196373097,31.14,142.62,142.57,7.64525868]
[1745196373304,586.86,142.65,142.6,24.95316264]
[1745196373595,31.14,142.65,142.61,7.65594085]
[1745196373899,31.14,142.65,142.62,7.65594085]
[1745196374195,31.14,142.68,142.63,7.65355225]
[1745196374401,31.14,142.68,142.64,7.66454762]
[1745196374700,31.14,142.68,142.6,24.95316264]
[1745196374898,31.14,142.68,142.61,7.66409087]
[1745196375098,31.14,142.68,142.62,14.83406148]
[1745196375302,31.14,142.68,142.63,32.61725351]
[1745196375501,31.14,142.71,142.66,24.95316264]
[1745196375697,31.14,142.71,142.67,7.66409087]
[1745196376005,31.14,142.71,142.68,7.66769416]
[1745196376198,31.14,142.71,142.69,7.66625521]
[1745196376399,31.14,142.71,142.63,28.95776264]
[1745196376598,31.14,142.71,142.64,7.67941789]
[1745196376798,31.14,142.71,142.65,14.86472932]
[1745196376998,31.14,142.71,142.66,7.67941789]
[1745196377204,31.14,142.71,142.67,7.67941789]
[1745196377399,31.14,142.71,142.57,59.74196264]
[1745196377605,7.0105,142.67,142.58,7.49171969]
[1745196377801,31.12,142.66,142.59,7.49171969]
[1745196378002,31.12,142.66,142.62,7.0125]
[1745196378203,31.12,142.66,142.63,7.49171969]
[1745196378403,31.12,142.66,142.6,7.2038955]
[1745196378606,31.12,142.66,142.61,14.41940158]
[1745196378905,31.12,142.66,142.62,7.40620158]
[1745196379109,31.12,142.7,142.63,32.35936422]
[1745196379305,31.12,142.7,142.64,7.40620158]
[1745196379605,31.12,142.7,142.65,14.54564442]
[1745196379802,31.12,142.7,142.65,7.13944284]
[1745196380203,34.8219,142.7,142.65,7.13944284]
[1745196380404,7.01,142.68,142.62,7.0124]
[1745196380605,7.01,142.68,142.63,7.39942412]
[1745196380806,34.8219,142.7,142.6,24.95316264]
[1745196381005,31.12,142.7,142.63,24.95316264]
[1745196381208,555.72,142.72,142.66,24.95316264]
[1745196381409,31.1,142.73,142.66,24.95316264]
[1745196381908,31.1,142.73,142.69,24.95316264]
[1745196382102,38.7695,142.8,142.74,7.0068]
[1745196382300,38.7695,142.8,142.72,24.95316264]
[1745196382504,35.0043,142.8,142.72,24.95316264]
[1745196382705,35.0043,142.8,142.75,7.006]
[1745196382905,35.0043,142.8,142.72,24.95316264]
[1745196383104,35.0043,142.8,142.73,7.37041768]
[1745196383408,31.1,142.8,142.74,14.4644958]
[1745196383611,31.1,142.8,142.78,7.0046]
[1745196383801,31.1,142.83,142.75,24.95316264]
[1745196384200,38.1026,142.83,142.77,7.0054]
[1745196384406,31.1,142.83,142.75,24.95316264]
[1745196384702,38.1029,142.83,142.77,7.0054]
[1745196384902,31.1,142.83,142.7,24.95316264]
[1745196385102,31.1,142.83,142.73,24.95316264]
[1745196385310,31.1,142.83,142.76,24.95316264]
[1745196385803,31.1,142.83,142.78,7.0049]
[1745196386002,31.1,142.83,142.76,24.95316264]
[1745196386912,31.1,142.83,142.78,7.0046]
[1745196387106,31.1,142.83,142.76,24.95316264]
[1745196387810,31.1,142.83,142.73,24.95316264]
[1745196388011,38.1029,142.83,142.73,24.95316264]
[1745196388201,31.1,142.83,142.73,24.95316264]
[1745196389311,7.0034,142.82,142.76,7.0056]
[1745196389811,31.1,142.83,142.73,24.95316264]
[1745196390411,38.1029,142.83,142.73,24.95316264]
[1745196390711,31.1,142.83,142.73,24.95316264]
[1745196390906,31.1,142.83,142.77,7.0051]
[1745196391611,31.1,142.83,142.75,7.0062]
[1745196391812,31.1,142.83,142.73,24.95316264]
[1745196392316,555.4,142.86,142.73,24.95316264]
[1745196392510,31.08,142.85,142.76,24.95316264]
[1745196392811,7.0026,142.83,142.77,7.0051]
[1745196393008,24.95316264,142.84,142.68,7.6984]
[1745196393210,24.95316264,142.81,142.68,7.6984]
[1745196393409,15.32232672,142.79,142.7,7.0089]
[1745196393611,31.08,142.8,142.7,7.0089]
[1745196393909,31.08,142.8,142.68,3.6569]
[1745196394214,31.08,142.8,142.71,15.32232672]
[1745196394714,31.08,142.8,142.72,3.7676]
[1745196395015,31.08,142.8,142.77,7.0053]
[1745196395812,31.08,142.8,142.73,24.8691795]
[1745196396914,31.08,142.8,142.72,361.0]
[1745196397212,31.08,142.8,142.68,63.3634795]
[1745196397718,31.08,142.8,142.71,24.8691795]
[1745196397915,31.08,142.8,142.74,24.8691795]
[1745196398215,31.08,142.8,142.75,3.8983]
[1745196399118,31.08,142.8,142.78,7.0046]
[1745196399318,31.08,142.8,142.75,3.8983]
[1745196399916,31.08,142.84,142.77,24.8691795]
[1745196400718,31.08,142.84,142.8,7.0037]
[1745196400914,31.08,142.84,142.77,24.8691795]
[1745196401218,555.4,142.86,142.8,24.8691795]
[1745196401921,555.4,142.86,142.83,7.0024]
[1745196402123,555.4,142.86,142.8,24.8691795]
[1745196402422,555.4,142.86,142.82,7.0026]
[1745196402623,555.4,142.86,142.8,24.8691795]
[1745196402820,555.4,142.86,142.83,7.0021]
[1745196403124,0.04855353,142.84,142.83,7.0021]
[1745196403324,0.04855353,142.84,142.8,24.8691795]
[1745196403825,0.04855353,142.84,142.82,0.04769266]
[1745196404824,0.04855353,142.84,142.82,7.05029266]
[1745196405023,0.04855353,142.84,142.82,0.04769266]
[1745196405520,3.7688,142.92,142.83,7.0025]
[1745196405726,31.06,142.91,142.83,24.8691795]
[1745196405928,31.06,142.91,142.83,28.8729795]
[1745196406127,38.0587,142.91,142.87,7.0005]
[1745196406422,31.06,142.91,142.83,4.0038]
[1745196407028,31.06,142.91,142.86,0.04992343]
[1745196407227,24.8691795,142.9,142.76,3.8539]
[1745196407525,24.8691795,142.9,142.77,3.9928]
[1745196407920,31.06,142.91,142.78,24.8691795]
[1745196408118,42.03,143.05,142.84,24.8691795]
[1745196408320,24.8691795,143.0,142.85,11.5418]
[1745196408523,1.28302573,142.99,142.85,11.5418]
[1745196408827,0.04759091,142.95,142.85,7.8434]
[1745196409028,6.9986,142.92,142.86,7.0011]
[1745196409426,589.5858,142.94,142.85,7.8434]
[1745196409725,6.9981,142.92,142.85,7.8434]
[1745196409919,589.5858,142.94,142.85,7.8434]
[1745196410123,0.05217302,142.91,142.86,7.001]
[1745196410325,31.04,142.9,142.85,7.8434]
[1745196410620,31.04,142.9,142.89,6.9996]
[1745196410821,0.05217302,142.91,142.89,6.9996]
[1745196411027,0.05217302,142.91,142.88,0.04583917]
[1745196411328,0.05217302,142.91,142.9,6.9991]
[1745196411629,0.05217302,142.91,142.88,0.04583917]
[1745196411827,0.05217302,142.91,142.9,6.9991]
[1745196412425,0.05217302,142.91,142.89,6.9996]
[1745196412727,0.05217302,142.91,142.88,0.04583917]
[1745196413627,0.05217302,142.91,142.88,7.04553917]
[1745196414123,0.05217302,142.91,142.88,0.04583917]
[1745196414932,7.05117302,142.91,142.88,0.04583917]
[1745196415225,0.05217302,142.91,142.88,0.04583917]
[1745196415822,7.05217302,142.91,142.79,15.28616385]
[1745196416129,15.28616385,142.87,142.73,15.28616385]